[Event "*** SCC Grand Prix: Titled Tuesday Blitz"]
[Site "Chess.com"]
[Date "2020.10.13"]
[Round "8"]
[White "Region_07"]
[Black "chiwii"]
[Result "1-0"]
[WhiteElo "2325"]
[BlackElo "2201"]
[TimeControl "180+1"]
[EndTime "11:34:28 PDT"]
[Termination "Region_07 won by resignation"]

1. e4 {[%clk 0:02:59]} 1... c5 {[%clk 0:02:58.8]} 2. Nf3 {[%clk 0:02:55.5]} 2...
e6 {[%clk 0:02:58.9]} 3. c3 {[%clk 0:02:55.7]} 3... Nc6 {[%clk 0:02:54.3]} 4. e5
{[%clk 0:02:51.3]} 4... d5 {[%clk 0:02:51.4]} 5. g3 {[%clk 0:02:43.8]} 5... f6
{[%clk 0:02:44.5]} 6. exf6 {[%clk 0:02:41.3]} 6... Nxf6 {[%clk 0:02:44.3]} 7.
Bg2 {[%clk 0:02:41.8]} 7... Bd6 {[%clk 0:02:42]} 8. O-O {[%clk 0:02:40.9]} 8...
O-O {[%clk 0:02:42.1]} 9. d4 {[%clk 0:02:35.6]} 9... Ne4 {[%clk 0:02:35.5]} 10.
Nbd2 {[%clk 0:02:30.8]} 10... Nxd2 {[%clk 0:02:05.1]} 11. Bxd2 {[%clk
0:02:30.1]} 11... Qf6 {[%clk 0:01:44.5]} 12. Be3 {[%clk 0:02:26.6]} 12... cxd4
{[%clk 0:01:42.9]} 13. cxd4 {[%clk 0:02:12]} 13... Bd7 {[%clk 0:01:41.9]} 14.
Qd2 {[%clk 0:01:54.9]} 14... Rac8 {[%clk 0:01:40]} 15. a3 {[%clk 0:01:52.3]}
15... b6 {[%clk 0:01:24.9]} 16. b4 {[%clk 0:01:47.9]} 16... Kh8 {[%clk
0:01:05.7]} 17. Rae1 {[%clk 0:01:41.7]} 17... a5 {[%clk 0:01:03.6]} 18. b5
{[%clk 0:01:37]} 18... Nd8 {[%clk 0:00:57.7]} 19. Qb2 {[%clk 0:01:35.1]} 19...
Nf7 {[%clk 0:00:53.2]} 20. Bd2 {[%clk 0:01:24.9]} 20... Rc4 {[%clk 0:00:42.5]}
21. Ne5 {[%clk 0:01:18.4]} 21... Bxe5 {[%clk 0:00:39.3]} 22. dxe5 {[%clk
0:01:19.3]} 22... Qf5 {[%clk 0:00:37.9]} 23. Be3 {[%clk 0:01:17.2]} 23... Rc2
{[%clk 0:00:36.1]} 24. Qb1 {[%clk 0:01:02.7]} 24... Nxe5 {[%clk 0:00:35.4]} 25.
Bxb6 {[%clk 0:00:54.2]} 25... Nc4 {[%clk 0:00:32.8]} 26. Bd4 {[%clk 0:00:35.1]}
26... Nd2 {[%clk 0:00:31.5]} 27. Qa1 {[%clk 0:00:35.1]} 27... Qf7 {[%clk
0:00:27.9]} 28. a4 {[%clk 0:00:22.7]} 28... Nxf1 {[%clk 0:00:27.7]} 29. Rxf1
{[%clk 0:00:19.5]} 29... e5 {[%clk 0:00:28.1]} 30. Bxe5 {[%clk 0:00:19]} 30...
Rxf2 {[%clk 0:00:28.1]} 31. Rxf2 {[%clk 0:00:17.2]} 31... Qxf2+ {[%clk 0:00:29]}
32. Kh1 {[%clk 0:00:17.5]} 32... Qf7 {[%clk 0:00:27.9]} 33. h3 {[%clk
0:00:14.9]} 33... h6 {[%clk 0:00:27.6]} 34. Qd4 {[%clk 0:00:15.2]} 34... Kh7
{[%clk 0:00:27.2]} 35. Kh2 {[%clk 0:00:12.9]} 35... Be6 {[%clk 0:00:26.6]} 36.
Qd3+ {[%clk 0:00:10.1]} 36... Qf5 {[%clk 0:00:26.4]} 37. Qd4 {[%clk 0:00:08.5]}
37... g6 {[%clk 0:00:25.5]} 38. Bg7 {[%clk 0:00:07.2]} 38... Rf7 {[%clk
0:00:24.9]} 39. Be5 {[%clk 0:00:06.9]} 39... h5 {[%clk 0:00:24.7]} 40. b6 {[%clk
0:00:06.3]} 40... Rb7 {[%clk 0:00:23.2]} 41. Bc7 {[%clk 0:00:05.9]} 41... g5
{[%clk 0:00:21.3]} 42. Qc5 {[%clk 0:00:06.3]} 42... Qf7 {[%clk 0:00:19.3]} 43.
Qc6 {[%clk 0:00:06.5]} 43... Bc8 {[%clk 0:00:18.2]} 44. Bxd5 {[%clk 0:00:06.6]}
44... Qf2+ {[%clk 0:00:18.1]} 45. Bg2 {[%clk 0:00:06.6]} 45... Qf7 {[%clk
0:00:18.2]} 46. Qe4+ {[%clk 0:00:06.4]} 46... Qf5 {[%clk 0:00:15.9]} 47. Qxf5+
{[%clk 0:00:06.2]} 47... Bxf5 {[%clk 0:00:16.8]} 48. Bxb7 {[%clk 0:00:06.4]}
48... Bc2 {[%clk 0:00:17.7]} 49. Bc6 {[%clk 0:00:06.5]} 49... Be4 {[%clk
0:00:16.2]} 50. b7 {[%clk 0:00:06.5]} 50... Bxc6 {[%clk 0:00:17.1]} 51. b8=Q
{[%clk 0:00:07.2]} 51... Bxa4 {[%clk 0:00:17.3]} 52. Qd8 {[%clk 0:00:08]} 52...
Bb5 {[%clk 0:00:16.2]} 53. Bxa5 {[%clk 0:00:08.9]} 53... Kg6 {[%clk 0:00:15.8]}
54. h4 {[%clk 0:00:09.6]} 54... gxh4 {[%clk 0:00:15.2]} 55. gxh4 {[%clk
0:00:10.5]} 55... Kf5 {[%clk 0:00:16]} 56. Qg5+ {[%clk 0:00:10.3]} 56... Ke4
{[%clk 0:00:16.6]} 57. Qxb5 {[%clk 0:00:10.6]} 57... Ke3 {[%clk 0:00:17.2]} 58.
Qxh5 {[%clk 0:00:10.5]} 58... Kf4 {[%clk 0:00:18.1]} 59. Qg5+ {[%clk 0:00:11]}
1-0

[Event "*** SCC Grand Prix: Titled Tuesday Blitz"]
[Site "Chess.com"]
[Date "2020.10.13"]
[Round "8"]
[White "barriochess"]
[Black "anasta10"]
[Result "1-0"]
[WhiteElo "2277"]
[BlackElo "2389"]
[TimeControl "180+1"]
[EndTime "11:34:32 PDT"]
[Termination "barriochess won by resignation"]

1. d4 {[%clk 0:03:00.9]} 1... Nf6 {[%clk 0:02:27.1]} 2. c4 {[%clk 0:03:00.9]}
2... g6 {[%clk 0:02:28]} 3. Nc3 {[%clk 0:03:00.7]} 3... d5 {[%clk 0:02:26.2]} 4.
cxd5 {[%clk 0:02:59.5]} 4... Nxd5 {[%clk 0:02:27.1]} 5. e4 {[%clk 0:03:00.1]}
5... Nxc3 {[%clk 0:02:27]} 6. bxc3 {[%clk 0:03:01]} 6... Bg7 {[%clk 0:02:27.6]}
7. Be3 {[%clk 0:03:01.3]} 7... O-O {[%clk 0:02:28.5]} 8. Rc1 {[%clk 0:03:01.2]}
8... c5 {[%clk 0:02:26.5]} 9. Qd2 {[%clk 0:03:01.4]} 9... Qa5 {[%clk 0:02:21.9]}
10. Nf3 {[%clk 0:02:59.6]} 10... Rd8 {[%clk 0:02:05.8]} 11. d5 {[%clk
0:02:59.4]} 11... b6 {[%clk 0:02:02]} 12. c4 {[%clk 0:02:56.7]} 12... Qxd2+
{[%clk 0:02:00.4]} 13. Nxd2 {[%clk 0:02:56.1]} 13... e6 {[%clk 0:02:00.8]} 14.
Be2 {[%clk 0:02:46.6]} 14... Ba6 {[%clk 0:01:46.1]} 15. O-O {[%clk 0:02:41.7]}
15... Nd7 {[%clk 0:01:44.1]} 16. f3 {[%clk 0:02:34]} 16... exd5 {[%clk
0:01:41.2]} 17. exd5 {[%clk 0:02:32.7]} 17... Re8 {[%clk 0:01:41.6]} 18. Kf2
{[%clk 0:02:31.1]} 18... Re7 {[%clk 0:01:32.3]} 19. Rfe1 {[%clk 0:01:38.8]}
19... Rae8 {[%clk 0:01:29.8]} 20. Nf1 {[%clk 0:01:39.2]} 20... f5 {[%clk
0:01:19.7]} 21. g3 {[%clk 0:01:32.2]} 21... Ne5 {[%clk 0:00:36.5]} 22. f4 {[%clk
0:01:26.1]} 22... Nf7 {[%clk 0:00:28.4]} 23. Bf3 {[%clk 0:01:22.2]} 23... Nd6
{[%clk 0:00:27.8]} 24. Nd2 {[%clk 0:01:20.9]} 24... Rxe3 {[%clk 0:00:25.3]} 25.
Rxe3 {[%clk 0:01:20.9]} 25... Bd4 {[%clk 0:00:25.8]} 26. Re1 {[%clk 0:01:19.2]}
26... Bxc4 {[%clk 0:00:23.1]} 27. Bd1 {[%clk 0:01:05.1]} 27... Bxd5 {[%clk
0:00:17.9]} 28. Nf3 {[%clk 0:01:01.5]} 28... Rxe3 {[%clk 0:00:13]} 29. Rxe3
{[%clk 0:01:00.2]} 29... Ne4+ {[%clk 0:00:12.1]} 30. Ke2 {[%clk 0:00:53.3]}
30... Bc4+ {[%clk 0:00:09.9]} 31. Rd3 {[%clk 0:00:53.8]} 31... Nc3+ {[%clk
0:00:09.1]} 32. Kd2 {[%clk 0:00:51.7]} 32... Bxd3 {[%clk 0:00:09.5]} 33. Nxd4
{[%clk 0:00:51.2]} 33... cxd4 {[%clk 0:00:08.8]} 34. Bb3+ {[%clk 0:00:50.8]}
34... Kf8 {[%clk 0:00:06]} 35. Kxd3 {[%clk 0:00:51.1]} 35... Nb5 {[%clk
0:00:06.1]} 36. Kc4 {[%clk 0:00:50]} 36... a6 {[%clk 0:00:05.6]} 37. a4 {[%clk
0:00:48.9]} 37... Nd6+ {[%clk 0:00:03.8]} 38. Kxd4 {[%clk 0:00:49.1]} 38... Ke7
{[%clk 0:00:03.6]} 39. Kd5 {[%clk 0:00:49.5]} 39... Kd7 {[%clk 0:00:03.1]} 40.
Ke5 {[%clk 0:00:47.8]} 40... Ke7 {[%clk 0:00:02.9]} 41. Kd5 {[%clk 0:00:45.9]}
41... b5 {[%clk 0:00:03.8]} 42. axb5 {[%clk 0:00:44.6]} 42... axb5 {[%clk
0:00:04.7]} 43. Kc5 {[%clk 0:00:43.5]} 43... Kd7 {[%clk 0:00:05]} 44. Bg8 {[%clk
0:00:42.4]} 44... h6 {[%clk 0:00:05.4]} 45. Bd5 {[%clk 0:00:39.7]} 45... g5
{[%clk 0:00:05.5]} 46. Bc6+ {[%clk 0:00:39.4]} 46... Ke6 {[%clk 0:00:05.3]} 47.
Bd5+ {[%clk 0:00:39.1]} 47... Kf6 {[%clk 0:00:05.4]} 48. Kxd6 {[%clk 0:00:38.5]}
48... gxf4 {[%clk 0:00:05.6]} 49. gxf4 {[%clk 0:00:38.8]} 49... b4 {[%clk
0:00:05.9]} 50. Kc5 {[%clk 0:00:37.4]} 50... Kg6 {[%clk 0:00:06.2]} 51. Kxb4
{[%clk 0:00:24.4]} 51... Kh5 {[%clk 0:00:07.1]} 52. Bf3+ {[%clk 0:00:23.2]}
52... Kh4 {[%clk 0:00:07.2]} 53. Kc4 {[%clk 0:00:22]} 53... Kh3 {[%clk
0:00:06.9]} 54. Kd4 {[%clk 0:00:21.8]} 54... Kxh2 {[%clk 0:00:07.5]} 55. Ke5
{[%clk 0:00:22.4]} 55... Kg3 {[%clk 0:00:07.7]} 56. Bd1 {[%clk 0:00:21.6]} 56...
h5 {[%clk 0:00:07.5]} 57. Kxf5 {[%clk 0:00:22.3]} 57... h4 {[%clk 0:00:08.4]}
58. Ba4 {[%clk 0:00:21]} 58... h3 {[%clk 0:00:08.5]} 59. Bc6 {[%clk 0:00:21.6]}
59... h2 {[%clk 0:00:08.8]} 60. Kg5 {[%clk 0:00:21.2]} 60... Kh3 {[%clk
0:00:07.2]} 61. f5 {[%clk 0:00:21.2]} 1-0

[Event "*** SCC Grand Prix: Titled Tuesday Blitz"]
[Site "Chess.com"]
[Date "2020.10.13"]
[Round "8"]
[White "sopo-tereladze"]
[Black "Triumphmate"]
[Result "0-1"]
[WhiteElo "2283"]
[BlackElo "2446"]
[TimeControl "180+1"]
[EndTime "11:34:35 PDT"]
[Termination "Triumphmate won by checkmate"]

1. d4 {[%clk 0:03:00.9]} 1... Nf6 {[%clk 0:02:54.5]} 2. Nf3 {[%clk 0:02:59.7]}
2... e6 {[%clk 0:02:55.4]} 3. Bf4 {[%clk 0:02:59.4]} 3... d5 {[%clk 0:02:55.2]}
4. e3 {[%clk 0:02:59.7]} 4... Be7 {[%clk 0:02:56.1]} 5. Bd3 {[%clk 0:02:59.3]}
5... O-O {[%clk 0:02:56.6]} 6. O-O {[%clk 0:02:59.7]} 6... c5 {[%clk 0:02:57.1]}
7. c3 {[%clk 0:02:59.1]} 7... Nc6 {[%clk 0:02:58]} 8. Nbd2 {[%clk 0:02:55.7]}
8... b6 {[%clk 0:02:56.9]} 9. Ne5 {[%clk 0:02:55.5]} 9... Bb7 {[%clk 0:02:51.3]}
10. Qf3 {[%clk 0:02:51.4]} 10... Nxe5 {[%clk 0:02:36.9]} 11. dxe5 {[%clk
0:02:49.2]} 11... Nd7 {[%clk 0:02:35.8]} 12. Qh5 {[%clk 0:02:43]} 12... g6
{[%clk 0:02:33.3]} 13. Qh6 {[%clk 0:02:43]} 13... Re8 {[%clk 0:02:29.9]} 14. Nf3
{[%clk 0:02:43.3]} 14... Bf8 {[%clk 0:02:29.2]} 15. Qh3 {[%clk 0:02:42.6]} 15...
Be7 {[%clk 0:02:18.1]} 16. Qg4 {[%clk 0:02:31.1]} 16... Qc7 {[%clk 0:01:47.8]}
17. h4 {[%clk 0:02:22.1]} 17... h5 {[%clk 0:01:45.9]} 18. Qg3 {[%clk 0:02:21.5]}
18... d4 {[%clk 0:01:34.2]} 19. Bxg6 {[%clk 0:02:14.1]} 19... Kh8 {[%clk
0:01:23.4]} 20. Bxf7 {[%clk 0:02:10.8]} 20... Rg8 {[%clk 0:01:22.4]} 21. Bxg8
{[%clk 0:02:08]} 21... Rxg8 {[%clk 0:01:23.3]} 22. Qh3 {[%clk 0:02:07.8]} 22...
Qc6 {[%clk 0:01:12.1]} 23. Ng5 {[%clk 0:02:00]} 23... dxc3 {[%clk 0:00:58.4]}
24. bxc3 {[%clk 0:01:52.7]} 24... Nf8 {[%clk 0:00:47.3]} 25. f3 {[%clk
0:01:38.8]} 25... Ng6 {[%clk 0:00:37]} 26. Qxe6 {[%clk 0:01:18.3]} 26... Qxe6
{[%clk 0:00:31.2]} 27. Nxe6 {[%clk 0:01:17.5]} 27... Nxh4 {[%clk 0:00:31.8]} 28.
Rf2 {[%clk 0:00:59.7]} 28... Bxf3 {[%clk 0:00:28]} 29. Kh2 {[%clk 0:00:58.4]}
29... Bxg2 {[%clk 0:00:21.2]} 30. Bg3 {[%clk 0:00:48.8]} 30... Bd5 {[%clk
0:00:17.8]} 31. Raf1 {[%clk 0:00:43.7]} 31... Bxe6 {[%clk 0:00:16.7]} 32. Rf4
{[%clk 0:00:39]} 32... Ng6 {[%clk 0:00:14.5]} 33. Rf6 {[%clk 0:00:37.1]} 33...
Bxf6 {[%clk 0:00:13.9]} 34. Rxf6 {[%clk 0:00:34.8]} 34... Bxa2 {[%clk
0:00:14.3]} 35. e6 {[%clk 0:00:33.8]} 35... Kh7 {[%clk 0:00:14.4]} 36. Kh3
{[%clk 0:00:30.9]} 36... Re8 {[%clk 0:00:14.7]} 37. Rf7+ {[%clk 0:00:30.4]}
37... Kh6 {[%clk 0:00:12.7]} 38. Rxa7 {[%clk 0:00:31.3]} 38... Rxe6 {[%clk
0:00:12.4]} 39. Kg2 {[%clk 0:00:28.6]} 39... Rxe3 {[%clk 0:00:12.2]} 40. Kf2
{[%clk 0:00:27.5]} 40... Rxc3 {[%clk 0:00:11.8]} 41. Rb7 {[%clk 0:00:26.2]}
41... h4 {[%clk 0:00:11.6]} 42. Bh2 {[%clk 0:00:24.3]} 42... Rb3 {[%clk
0:00:11.8]} 43. Rb8 {[%clk 0:00:22.9]} 43... Rb2+ {[%clk 0:00:12.2]} 44. Kg1
{[%clk 0:00:22.5]} 44... Kg5 {[%clk 0:00:13.1]} 45. Bd6 {[%clk 0:00:21.8]} 45...
Kg4 {[%clk 0:00:12.3]} 46. Re8 {[%clk 0:00:19.4]} 46... Nf4 {[%clk 0:00:11.1]}
47. Re4 {[%clk 0:00:17.3]} 47... Rb1+ {[%clk 0:00:11.4]} 48. Kf2 {[%clk
0:00:16.8]} 48... Rb4 {[%clk 0:00:12.3]} 49. Rxb4 {[%clk 0:00:15.4]} 49... cxb4
{[%clk 0:00:13.2]} 50. Bxb4 {[%clk 0:00:16.1]} 50... Bc4 {[%clk 0:00:13.3]} 51.
Bd6 {[%clk 0:00:15.3]} 51... b5 {[%clk 0:00:14.2]} 52. Kg1 {[%clk 0:00:14.5]}
52... h3 {[%clk 0:00:15.1]} 53. Kh2 {[%clk 0:00:14.1]} 53... Ng6 {[%clk
0:00:15.1]} 54. Bb4 {[%clk 0:00:13]} 54... Nh4 {[%clk 0:00:15.3]} 55. Bc5 {[%clk
0:00:08.1]} 55... Nf3+ {[%clk 0:00:16.2]} 56. Kh1 {[%clk 0:00:07.6]} 56... Bf1
{[%clk 0:00:17.1]} 57. Bb6 {[%clk 0:00:06.3]} 57... Bg2# {[%clk 0:00:18]} 0-1

[Event "*** SCC Grand Prix: Titled Tuesday Blitz"]
[Site "Chess.com"]
[Date "2020.10.13"]
[Round "8"]
[White "vugarrasulov"]
[Black "SergeyKarjakin"]
[Result "0-1"]
[WhiteElo "2847"]
[BlackElo "2915"]
[TimeControl "180+1"]
[EndTime "11:34:39 PDT"]
[Termination "SergeyKarjakin won on time"]

1. e4 {[%clk 0:03:00.9]} 1... e5 {[%clk 0:02:58.9]} 2. Nf3 {[%clk 0:03:01.3]}
2... Nc6 {[%clk 0:02:59.5]} 3. Bb5 {[%clk 0:03:01.8]} 3... a6 {[%clk 0:02:59]}
4. Ba4 {[%clk 0:03:02.4]} 4... Nf6 {[%clk 0:02:59.5]} 5. O-O {[%clk 0:03:02.9]}
5... Be7 {[%clk 0:03:00.2]} 6. d3 {[%clk 0:03:03.1]} 6... b5 {[%clk 0:02:59.8]}
7. Bb3 {[%clk 0:03:03.6]} 7... d6 {[%clk 0:02:55.5]} 8. a4 {[%clk 0:03:03.3]}
8... Bd7 {[%clk 0:02:51.8]} 9. Bd2 {[%clk 0:03:03.1]} 9... O-O {[%clk
0:02:43.6]} 10. Nc3 {[%clk 0:03:03.2]} 10... Na5 {[%clk 0:02:31.6]} 11. Ba2
{[%clk 0:03:02.6]} 11... b4 {[%clk 0:02:31.2]} 12. Nd5 {[%clk 0:03:02.6]} 12...
Nxd5 {[%clk 0:02:30.6]} 13. Bxd5 {[%clk 0:03:02.4]} 13... c6 {[%clk 0:02:31.2]}
14. Ba2 {[%clk 0:03:02]} 14... Rb8 {[%clk 0:02:20.3]} 15. d4 {[%clk 0:02:52]}
15... exd4 {[%clk 0:02:17.2]} 16. Nxd4 {[%clk 0:02:52.3]} 16... Bf6 {[%clk
0:02:16.4]} 17. c3 {[%clk 0:02:44.5]} 17... c5 {[%clk 0:02:11.5]} 18. Nf5 {[%clk
0:02:20.2]} 18... Bxf5 {[%clk 0:02:05.8]} 19. exf5 {[%clk 0:02:21.1]} 19... b3
{[%clk 0:01:59.4]} 20. Bb1 {[%clk 0:02:20.4]} 20... d5 {[%clk 0:01:58.7]} 21.
Bf4 {[%clk 0:02:02.1]} 21... Rb7 {[%clk 0:01:53.3]} 22. Bd3 {[%clk 0:01:52.5]}
22... c4 {[%clk 0:01:51.8]} 23. Be2 {[%clk 0:01:52.6]} 23... Rd7 {[%clk
0:01:41.5]} 24. Be3 {[%clk 0:01:41.2]} 24... d4 {[%clk 0:01:22.1]} 25. cxd4
{[%clk 0:01:40.9]} 25... Bxd4 {[%clk 0:01:22.7]} 26. Bxd4 {[%clk 0:01:40.8]}
26... Rxd4 {[%clk 0:01:23.6]} 27. Qc1 {[%clk 0:01:39]} 27... Rd2 {[%clk
0:01:11.8]} 28. Rd1 {[%clk 0:01:27.1]} 28... Rc2 {[%clk 0:01:09.6]} 29. Rxd8
{[%clk 0:00:47.2]} 29... Rxc1+ {[%clk 0:01:09.2]} 30. Rxc1 {[%clk 0:00:48.1]}
30... Rxd8 {[%clk 0:01:09.6]} 31. Kf1 {[%clk 0:00:49]} 31... Kf8 {[%clk
0:01:07.5]} 32. Ke1 {[%clk 0:00:44]} 32... Ke7 {[%clk 0:01:00.1]} 33. Rc3 {[%clk
0:00:38.7]} 33... Rd4 {[%clk 0:00:58]} 34. Rg3 {[%clk 0:00:26.9]} 34... Kd6
{[%clk 0:00:51]} 35. Bh5 {[%clk 0:00:21.4]} 35... g6 {[%clk 0:00:36.1]} 36. fxg6
{[%clk 0:00:22.3]} 36... hxg6 {[%clk 0:00:36.7]} 37. Be2 {[%clk 0:00:22.9]}
37... Nc6 {[%clk 0:00:25.4]} 38. Rc3 {[%clk 0:00:16.3]} 38... Kc5 {[%clk
0:00:24.4]} 39. g3 {[%clk 0:00:07.9]} 39... Kb4 {[%clk 0:00:24]} 40. f4 {[%clk
0:00:06.7]} 40... Ne7 {[%clk 0:00:14.5]} 41. Re3 {[%clk 0:00:06.3]} 41... Nf5
{[%clk 0:00:14.4]} 42. Re8 {[%clk 0:00:06.7]} 42... a5 {[%clk 0:00:11.4]} 43.
Rb8+ {[%clk 0:00:06.3]} 43... Kxa4 {[%clk 0:00:11.6]} 44. Bf3 {[%clk 0:00:06.6]}
44... Rd6 {[%clk 0:00:10.3]} 45. Rc8 {[%clk 0:00:06.3]} 45... Kb4 {[%clk
0:00:08.5]} 46. Rb8+ {[%clk 0:00:06.5]} 46... Kc5 {[%clk 0:00:08.6]} 47. Rc8+
{[%clk 0:00:07]} 47... Kb5 {[%clk 0:00:09]} 48. Rb8+ {[%clk 0:00:06.3]} 48...
Rb6 {[%clk 0:00:09]} 49. Rc8 {[%clk 0:00:06.9]} 49... a4 {[%clk 0:00:08.6]} 50.
Bd5 {[%clk 0:00:06]} 50... Nd6 {[%clk 0:00:08.7]} 51. Ra8 {[%clk 0:00:05.8]}
51... c3 {[%clk 0:00:08]} 0-1

[Event "*** SCC Grand Prix: Titled Tuesday Blitz"]
[Site "Chess.com"]
[Date "2020.10.13"]
[Round "8"]
[White "Roza_Idrisova"]
[Black "Ladislav1969"]
[Result "0-1"]
[WhiteElo "2180"]
[BlackElo "2374"]
[TimeControl "180+1"]
[EndTime "11:34:39 PDT"]
[Termination "Ladislav1969 won by checkmate"]

1. d4 {[%clk 0:03:00.9]} 1... Nf6 {[%clk 0:02:59.6]} 2. Nf3 {[%clk 0:03:00.9]}
2... g6 {[%clk 0:03:00]} 3. c4 {[%clk 0:03:00.2]} 3... Bg7 {[%clk 0:03:00.4]} 4.
Nc3 {[%clk 0:03:00.8]} 4... d5 {[%clk 0:03:00.6]} 5. cxd5 {[%clk 0:03:00.4]}
5... Nxd5 {[%clk 0:03:00.9]} 6. e4 {[%clk 0:03:00.5]} 6... Nxc3 {[%clk
0:03:01.4]} 7. bxc3 {[%clk 0:03:01]} 7... c5 {[%clk 0:03:02.2]} 8. Bb5+ {[%clk
0:03:01]} 8... Bd7 {[%clk 0:03:01.3]} 9. Bxd7+ {[%clk 0:03:00.8]} 9... Qxd7
{[%clk 0:02:56.3]} 10. O-O {[%clk 0:03:00.1]} 10... Nc6 {[%clk 0:02:51.2]} 11.
Be3 {[%clk 0:02:59.7]} 11... O-O {[%clk 0:02:49.9]} 12. Rb1 {[%clk 0:02:58.3]}
12... cxd4 {[%clk 0:02:38.6]} 13. cxd4 {[%clk 0:02:57.2]} 13... Na5 {[%clk
0:02:38.6]} 14. h3 {[%clk 0:02:38.8]} 14... Rfc8 {[%clk 0:02:37.8]} 15. Qd3
{[%clk 0:02:35.3]} 15... Nc4 {[%clk 0:02:36.3]} 16. Bf4 {[%clk 0:02:27.1]} 16...
b5 {[%clk 0:02:23.6]} 17. Rfc1 {[%clk 0:02:23.4]} 17... Nb6 {[%clk 0:02:02.5]}
18. Qxb5 {[%clk 0:02:13.4]} 18... Rxc1+ {[%clk 0:01:43]} 19. Bxc1 {[%clk
0:02:11.9]} 19... Qxb5 {[%clk 0:01:43.9]} 20. Rxb5 {[%clk 0:02:11]} 20... Rc8
{[%clk 0:01:43.8]} 21. Be3 {[%clk 0:02:10.1]} 21... Rc2 {[%clk 0:01:38.1]} 22.
Ra5 {[%clk 0:02:03.5]} 22... Nc8 {[%clk 0:01:26.7]} 23. Rc5 {[%clk 0:02:00.6]}
23... Rxc5 {[%clk 0:01:22.3]} 24. dxc5 {[%clk 0:02:00.6]} 24... Kf8 {[%clk
0:01:17.5]} 25. Kf1 {[%clk 0:01:59.5]} 25... Ke8 {[%clk 0:01:17.4]} 26. Ke2
{[%clk 0:01:59.5]} 26... h6 {[%clk 0:01:11.2]} 27. Kd3 {[%clk 0:01:59]} 27...
Kd7 {[%clk 0:01:11.2]} 28. Kc4 {[%clk 0:01:59]} 28... Kc6 {[%clk 0:01:06.6]} 29.
Nd4+ {[%clk 0:01:52.9]} 29... Bxd4 {[%clk 0:01:06.3]} 30. Bxd4 {[%clk
0:01:52.9]} 30... e6 {[%clk 0:00:59]} 31. Bf6 {[%clk 0:01:50.6]} 31... a6 {[%clk
0:00:57.7]} 32. a4 {[%clk 0:01:48.2]} 32... Na7 {[%clk 0:00:57.7]} 33. g4 {[%clk
0:01:43.6]} 33... Kd7 {[%clk 0:00:55.5]} 34. f4 {[%clk 0:01:18.8]} 34... Nc6
{[%clk 0:00:54.7]} 35. Bc3 {[%clk 0:01:15]} 35... Ne7 {[%clk 0:00:50.3]} 36. Bf6
{[%clk 0:01:07.7]} 36... Nc6 {[%clk 0:00:49.5]} 37. f5 {[%clk 0:01:05.4]} 37...
Na5+ {[%clk 0:00:45.8]} 38. Kb4 {[%clk 0:01:03.8]} 38... Nc6+ {[%clk 0:00:45.6]}
39. Kc3 {[%clk 0:01:03.4]} 39... Nb8 {[%clk 0:00:42.6]} 40. h4 {[%clk
0:00:53.9]} 40... h5 {[%clk 0:00:40.3]} 41. gxh5 {[%clk 0:00:52.7]} 41... gxh5
{[%clk 0:00:39.9]} 42. Kc4 {[%clk 0:00:49.6]} 42... Kc6 {[%clk 0:00:39.1]} 43.
Be7 {[%clk 0:00:44.8]} 43... Nd7 {[%clk 0:00:38.4]} 44. fxe6 {[%clk 0:00:42.7]}
44... fxe6 {[%clk 0:00:38.1]} 45. Bd6 {[%clk 0:00:41.5]} 45... Nf6 {[%clk
0:00:36.9]} 46. Kd4 {[%clk 0:00:39.2]} 46... Ng4 {[%clk 0:00:24.7]} 47. Be7
{[%clk 0:00:34.8]} 47... Kd7 {[%clk 0:00:23.4]} 48. Bg5 {[%clk 0:00:31.7]} 48...
Kc6 {[%clk 0:00:22.8]} 49. Be7 {[%clk 0:00:19.2]} 49... e5+ {[%clk 0:00:18.5]}
50. Kc4 {[%clk 0:00:17.9]} 50... Ne3+ {[%clk 0:00:18.5]} 51. Kb4 {[%clk
0:00:17.4]} 51... Nf1 {[%clk 0:00:15.1]} 52. Bd6 {[%clk 0:00:16.7]} 52... Ng3
{[%clk 0:00:14.2]} 53. Bxe5 {[%clk 0:00:15.3]} 53... Nxe4 {[%clk 0:00:15.1]} 54.
Bd4 {[%clk 0:00:14.9]} 54... Nd2 {[%clk 0:00:10.6]} 55. Ka5 {[%clk 0:00:14]}
55... Kb7 {[%clk 0:00:10.7]} 56. Kb4 {[%clk 0:00:13.6]} 56... Nf3 {[%clk
0:00:10.4]} 57. Be3 {[%clk 0:00:13.6]} 57... Kc6 {[%clk 0:00:10.1]} 58. Bf2
{[%clk 0:00:11.5]} 58... Ne5 {[%clk 0:00:09.6]} 59. Ka5 {[%clk 0:00:10]} 59...
Kb7 {[%clk 0:00:09.6]} 60. Bg3 {[%clk 0:00:08.5]} 60... Nc6# {[%clk 0:00:08.4]}
0-1